[Event "*** SCC Grand Prix: Titled Tuesday Blitz"]
[Site "Chess.com"]
[Date "2020.06.09"]
[Round "9"]
[White "AndrewDGreen"]
[Black "serhanberat_ozdemir"]
[Result "0-1"]
[WhiteElo "2357"]
[BlackElo "2483"]
[TimeControl "180+1"]
[EndTime "10:47:11 PDT"]
[Termination "serhanberat_ozdemir won by resignation"]

1. e4 {[%clk 0:02:58.8]} 1... c5 {[%clk 0:02:59.6]} 2. Nf3 {[%clk 0:02:58.1]}
2... e6 {[%clk 0:02:59.9]} 3. c3 {[%clk 0:02:58]} 3... Nf6 {[%clk 0:02:57.6]} 4.
e5 {[%clk 0:02:57.9]} 4... Nd5 {[%clk 0:02:58.1]} 5. d4 {[%clk 0:02:58.6]} 5...
cxd4 {[%clk 0:02:59]} 6. cxd4 {[%clk 0:02:59.5]} 6... d6 {[%clk 0:02:59.7]} 7.
Bd2 {[%clk 0:02:59.5]} 7... Bd7 {[%clk 0:03:00.3]} 8. Nc3 {[%clk 0:02:59.2]}
8... Bc6 {[%clk 0:03:00]} 9. Nxd5 {[%clk 0:02:55.5]} 9... Bxd5 {[%clk
0:03:00.1]} 10. Bd3 {[%clk 0:02:53.8]} 10... Nc6 {[%clk 0:02:58.4]} 11. Bc3
{[%clk 0:02:50.1]} 11... dxe5 {[%clk 0:02:53.3]} 12. dxe5 {[%clk 0:02:49.1]}
12... Bb4 {[%clk 0:02:45.2]} 13. Bxb4 {[%clk 0:02:44.1]} 13... Nxb4 {[%clk
0:02:46.1]} 14. Qa4+ {[%clk 0:02:40.8]} 14... Nc6 {[%clk 0:02:44.6]} 15. Qg4
{[%clk 0:02:32.3]} 15... Bxf3 {[%clk 0:02:24.3]} 16. Qxf3 {[%clk 0:02:30.3]}
16... Qa5+ {[%clk 0:02:24.1]} 17. Kf1 {[%clk 0:02:26.5]} 17... O-O {[%clk
0:02:24.4]} 18. Re1 {[%clk 0:02:07.8]} 18... Rad8 {[%clk 0:02:17.9]} 19. h4
{[%clk 0:01:59.1]} 19... g6 {[%clk 0:01:54.6]} 20. Qe3 {[%clk 0:01:46.7]} 20...
Rd5 {[%clk 0:01:36.5]} 21. f4 {[%clk 0:01:34.4]} 21... Rfd8 {[%clk 0:01:34.7]}
22. Be4 {[%clk 0:01:29.8]} 22... Rd1 {[%clk 0:01:30.3]} 23. Kf2 {[%clk 0:01:30]}
23... R1d2+ {[%clk 0:01:26.4]} 24. Kg3 {[%clk 0:01:23]} 24... Nxe5 {[%clk
0:01:03.9]} 25. fxe5 {[%clk 0:00:59.7]} 25... Qxe5+ {[%clk 0:01:04.8]} 26. Kh3
{[%clk 0:00:41.3]} 26... Qxb2 {[%clk 0:01:00.8]} 27. h5 {[%clk 0:00:26.4]} 27...
Qb5 {[%clk 0:00:51]} 28. Qh6 {[%clk 0:00:18]} 28... Qe5 {[%clk 0:00:28.7]} 29.
g3 {[%clk 0:00:10.5]} 29... Qg7 {[%clk 0:00:16]} 30. Qxg7+ {[%clk 0:00:08.4]}
30... Kxg7 {[%clk 0:00:16.9]} 31. hxg6 {[%clk 0:00:08.8]} 31... hxg6 {[%clk
0:00:17.8]} 32. a4 {[%clk 0:00:06.4]} 32... b6 {[%clk 0:00:17.3]} 33. Rhf1
{[%clk 0:00:04.5]} 33... R8d4 {[%clk 0:00:17.7]} 34. Bf3 {[%clk 0:00:02.2]}
34... Rxa4 {[%clk 0:00:17.1]} 35. g4 {[%clk 0:00:02.4]} 35... Rd3 {[%clk
0:00:16.6]} 36. Kg3 {[%clk 0:00:02.7]} 36... Raa3 {[%clk 0:00:16.4]} 37. Kg2
{[%clk 0:00:02.7]} 37... e5 {[%clk 0:00:14.6]} 38. Rxe5 {[%clk 0:00:02.2]} 38...
Rab3 {[%clk 0:00:11.7]} 39. Re7 {[%clk 0:00:02.2]} 39... Re3 {[%clk 0:00:10.4]}
40. Bd1 {[%clk 0:00:01.4]} 40... Rb2+ {[%clk 0:00:09.7]} 41. Kg1 {[%clk
0:00:01.9]} 41... Rxe7 {[%clk 0:00:10.2]} 42. Bf3 {[%clk 0:00:01.3]} 42... Re3
{[%clk 0:00:09.9]} 43. g5 {[%clk 0:00:02.2]} 43... Rxf3 {[%clk 0:00:09.5]} 44.
Rxf3 {[%clk 0:00:02.2]} 44... Rb5 {[%clk 0:00:10.4]} 45. Rg3 {[%clk 0:00:02.3]}
45... Rf5 {[%clk 0:00:10.2]} 46. Kg2 {[%clk 0:00:02.5]} 46... a5 {[%clk
0:00:11.1]} 47. Kh3 {[%clk 0:00:03]} 47... b5 {[%clk 0:00:12]} 48. Kg4 {[%clk
0:00:03.3]} 48... a4 {[%clk 0:00:12.9]} 49. Rd3 {[%clk 0:00:03.6]} 49... Rc5
{[%clk 0:00:13.1]} 50. Rd7 {[%clk 0:00:03.9]} 50... a3 {[%clk 0:00:12.6]} 51.
Ra7 {[%clk 0:00:03.4]} 51... Rc4+ {[%clk 0:00:13.3]} 52. Kf3 {[%clk 0:00:03.8]}
52... Ra4 {[%clk 0:00:14.2]} 53. Rb7 {[%clk 0:00:03.3]} 53... a2 {[%clk
0:00:14]} 54. Ke3 {[%clk 0:00:02.8]} 54... a1=Q {[%clk 0:00:14.5]} 0-1

[Event "*** SCC Grand Prix: Titled Tuesday Blitz"]
[Site "Chess.com"]
[Date "2020.06.09"]
[Round "9"]
[White "FMOlexandrProhorov"]
[Black "ferdipy"]
[Result "1-0"]
[WhiteElo "2104"]
[BlackElo "2344"]
[TimeControl "180+1"]
[EndTime "10:47:13 PDT"]
[Termination "FMOlexandrProhorov won on time"]

1. e4 {[%clk 0:03:00.9]} 1... e6 {[%clk 0:02:57.2]} 2. Qe2 {[%clk 0:02:59.5]}
2... c5 {[%clk 0:02:56.8]} 3. g3 {[%clk 0:02:58.6]} 3... Nc6 {[%clk 0:02:57.2]}
4. Bg2 {[%clk 0:02:56.8]} 4... g6 {[%clk 0:02:58.1]} 5. Nf3 {[%clk 0:02:55.1]}
5... Bg7 {[%clk 0:02:59]} 6. O-O {[%clk 0:02:55.3]} 6... Nge7 {[%clk 0:02:56.7]}
7. c3 {[%clk 0:02:55.4]} 7... d6 {[%clk 0:02:56.2]} 8. Na3 {[%clk 0:02:50.4]}
8... O-O {[%clk 0:02:55]} 9. Nc2 {[%clk 0:02:48.9]} 9... e5 {[%clk 0:02:53.6]}
10. h3 {[%clk 0:02:41.9]} 10... h6 {[%clk 0:02:48.4]} 11. Rd1 {[%clk 0:02:37]}
11... Be6 {[%clk 0:02:46.9]} 12. d4 {[%clk 0:02:35.2]} 12... cxd4 {[%clk
0:02:43.5]} 13. cxd4 {[%clk 0:02:35]} 13... Bd7 {[%clk 0:02:36.4]} 14. dxe5
{[%clk 0:02:32.1]} 14... dxe5 {[%clk 0:02:35.5]} 15. Ne3 {[%clk 0:02:29.6]}
15... Qc8 {[%clk 0:02:33.3]} 16. b3 {[%clk 0:02:25.2]} 16... Bxh3 {[%clk
0:02:25.4]} 17. Ba3 {[%clk 0:02:25]} 17... Re8 {[%clk 0:02:24.5]} 18. Rac1
{[%clk 0:02:23.2]} 18... Bxg2 {[%clk 0:02:22.3]} 19. Kxg2 {[%clk 0:02:23.2]}
19... Qe6 {[%clk 0:02:04.6]} 20. Nd5 {[%clk 0:02:20]} 20... Rac8 {[%clk
0:01:57.5]} 21. Qb5 {[%clk 0:02:12.3]} 21... Kh7 {[%clk 0:01:35.6]} 22. Nxe7
{[%clk 0:02:07.1]} 22... Nxe7 {[%clk 0:01:31.8]} 23. Rd6 {[%clk 0:02:02.1]}
23... Qg4 {[%clk 0:01:32]} 24. Qd3 {[%clk 0:01:42]} 24... Rxc1 {[%clk
0:01:25.2]} 25. Bxc1 {[%clk 0:01:42.9]} 25... Nc6 {[%clk 0:01:25.8]} 26. Rd7
{[%clk 0:01:39.3]} 26... Nd4 {[%clk 0:01:14.3]} 27. Rxf7 {[%clk 0:01:36.7]}
27... Qe6 {[%clk 0:01:06.8]} 28. Rxb7 {[%clk 0:01:34.6]} 28... Qc6 {[%clk
0:01:00.7]} 29. Rxa7 {[%clk 0:01:26.2]} 29... Qxc1 {[%clk 0:00:57.5]} 30. Nh4
{[%clk 0:01:15]} 30... Qg5 {[%clk 0:00:47.1]} 31. Qa6 {[%clk 0:01:11.4]} 31...
Rg8 {[%clk 0:00:41.5]} 32. Qd6 {[%clk 0:01:03.2]} 32... Nb5 {[%clk 0:00:38.1]}
33. Qc5 {[%clk 0:00:53.5]} 33... Nxa7 {[%clk 0:00:37.8]} 34. Qxa7 {[%clk
0:00:54.4]} 34... Qf6 {[%clk 0:00:35.8]} 35. Qd7 {[%clk 0:00:51.4]} 35... Rf8
{[%clk 0:00:35.9]} 36. f3 {[%clk 0:00:51.6]} 36... Qa6 {[%clk 0:00:31.2]} 37.
Kh3 {[%clk 0:00:45.5]} 37... Qxa2 {[%clk 0:00:17.5]} 38. Qe6 {[%clk 0:00:41.7]}
38... Rf6 {[%clk 0:00:12.2]} 39. Qxe5 {[%clk 0:00:42.3]} 39... Qxb3 {[%clk
0:00:11.8]} 40. Qe8 {[%clk 0:00:38.9]} 40... Qe6+ {[%clk 0:00:12.1]} 41. Qxe6
{[%clk 0:00:38.1]} 41... Rxe6 {[%clk 0:00:13]} 42. Kg4 {[%clk 0:00:38.2]} 42...
Rf6 {[%clk 0:00:12.4]} 43. f4 {[%clk 0:00:37.8]} 43... Re6 {[%clk 0:00:13]} 44.
e5 {[%clk 0:00:37.6]} 44... Bf8 {[%clk 0:00:13.6]} 45. Nf3 {[%clk 0:00:37.7]}
45... Be7 {[%clk 0:00:13.8]} 46. Nd4 {[%clk 0:00:37.8]} 46... Ra6 {[%clk
0:00:13.8]} 47. Kf3 {[%clk 0:00:38]} 47... Ra3+ {[%clk 0:00:13.4]} 48. Kg4
{[%clk 0:00:37]} 48... Ra2 {[%clk 0:00:11.1]} 49. Kf3 {[%clk 0:00:36.3]} 49...
Rh2 {[%clk 0:00:10.5]} 50. Nc6 {[%clk 0:00:30.4]} 50... Bc5 {[%clk 0:00:09.6]}
51. Ke4 {[%clk 0:00:26.4]} 51... Rg2 {[%clk 0:00:06.3]} 52. Kd5 {[%clk
0:00:26.7]} 52... Ba3 {[%clk 0:00:06]} 53. e6 {[%clk 0:00:21.3]} 53... Rxg3
{[%clk 0:00:05.7]} 54. Ne5 {[%clk 0:00:21.2]} 54... Re3 {[%clk 0:00:03]} 55. Nc4
{[%clk 0:00:18.5]} 1-0

[Event "*** SCC Grand Prix: Titled Tuesday Blitz"]
[Site "Chess.com"]
[Date "2020.06.09"]
[Round "9"]
[White "pedro_gines"]
[Black "Kopytkin"]
[Result "1-0"]
[WhiteElo "2468"]
[BlackElo "2349"]
[TimeControl "180+1"]
[EndTime "10:47:14 PDT"]
[Termination "pedro_gines won on time"]

1. Nf3 {[%clk 0:03:00.9]} 1... d5 {[%clk 0:02:49.9]} 2. b3 {[%clk 0:02:54.5]}
2... Nf6 {[%clk 0:02:47.1]} 3. Bb2 {[%clk 0:02:47.9]} 3... g6 {[%clk 0:02:47.4]}
4. c4 {[%clk 0:02:27.6]} 4... c6 {[%clk 0:02:41.5]} 5. e3 {[%clk 0:02:23.9]}
5... Bg7 {[%clk 0:02:41.4]} 6. Be2 {[%clk 0:02:19.5]} 6... O-O {[%clk
0:02:40.6]} 7. O-O {[%clk 0:02:15.1]} 7... a5 {[%clk 0:02:36.3]} 8. d4 {[%clk
0:02:13.1]} 8... Na6 {[%clk 0:02:34.9]} 9. Nc3 {[%clk 0:02:09.9]} 9... Bf5
{[%clk 0:02:32.7]} 10. a3 {[%clk 0:02:05.7]} 10... Ne4 {[%clk 0:02:24.9]} 11.
Nxe4 {[%clk 0:02:01.7]} 11... Bxe4 {[%clk 0:02:24.6]} 12. Ne5 {[%clk 0:01:53]}
12... Bf5 {[%clk 0:02:15.1]} 13. cxd5 {[%clk 0:01:48.8]} 13... Qxd5 {[%clk
0:02:07.8]} 14. Bf3 {[%clk 0:01:42.6]} 14... Be4 {[%clk 0:02:04.9]} 15. Bxe4
{[%clk 0:01:39]} 15... Qxe4 {[%clk 0:02:04.9]} 16. Qf3 {[%clk 0:01:36.7]} 16...
Qxf3 {[%clk 0:02:02.9]} 17. Nxf3 {[%clk 0:01:32.1]} 17... Nc7 {[%clk 0:02:01]}
18. Rfd1 {[%clk 0:01:24.6]} 18... Rfd8 {[%clk 0:02:00.3]} 19. Kf1 {[%clk
0:01:24.5]} 19... a4 {[%clk 0:01:57.6]} 20. b4 {[%clk 0:01:19.2]} 20... Rd7
{[%clk 0:01:53.8]} 21. Ke2 {[%clk 0:01:15.8]} 21... Rad8 {[%clk 0:01:53.9]} 22.
Rac1 {[%clk 0:01:15.5]} 22... h6 {[%clk 0:01:26.5]} 23. g4 {[%clk 0:01:14.2]}
23... Nd5 {[%clk 0:01:17.2]} 24. h4 {[%clk 0:01:12.6]} 24... Nf6 {[%clk
0:01:16.1]} 25. Rg1 {[%clk 0:01:07.1]} 25... Ne4 {[%clk 0:01:15.4]} 26. h5
{[%clk 0:01:05.1]} 26... g5 {[%clk 0:01:10.3]} 27. Ne1 {[%clk 0:00:49.5]} 27...
e5 {[%clk 0:00:46.2]} 28. f3 {[%clk 0:00:45]} 28... Nf6 {[%clk 0:00:44.9]} 29.
Rc2 {[%clk 0:00:44.1]} 29... exd4 {[%clk 0:00:38.5]} 30. Bxd4 {[%clk 0:00:45]}
30... Re8 {[%clk 0:00:35.3]} 31. Bxf6 {[%clk 0:00:24.9]} 31... Bxf6 {[%clk
0:00:34.9]} 32. Ng2 {[%clk 0:00:16.5]} 32... Red8 {[%clk 0:00:33.2]} 33. e4
{[%clk 0:00:14]} 33... Rd3 {[%clk 0:00:31.8]} 34. Rb1 {[%clk 0:00:11.1]} 34...
Rxa3 {[%clk 0:00:30.9]} 35. Ne3 {[%clk 0:00:11.1]} 35... Rb3 {[%clk 0:00:26.2]}
36. Rxb3 {[%clk 0:00:07.4]} 36... axb3 {[%clk 0:00:25.3]} 37. Rc1 {[%clk
0:00:07.5]} 37... b5 {[%clk 0:00:18]} 38. Rb1 {[%clk 0:00:06.2]} 38... b2 {[%clk
0:00:15.9]} 39. Nf5 {[%clk 0:00:03.9]} 39... Ra8 {[%clk 0:00:09.5]} 40. Kd3
{[%clk 0:00:04]} 40... Ra3+ {[%clk 0:00:07.6]} 41. Kc2 {[%clk 0:00:03.7]} 41...
Rc3+ {[%clk 0:00:07.8]} 42. Kxb2 {[%clk 0:00:03.8]} 42... Rxf3+ {[%clk
0:00:07.4]} 43. Kc2 {[%clk 0:00:03.8]} 43... Kh7 {[%clk 0:00:04.1]} 44. Rd1
{[%clk 0:00:03.4]} 44... Rc3+ {[%clk 0:00:03.4]} 45. Kb1 {[%clk 0:00:03.2]}
45... Rb3+ {[%clk 0:00:03]} 46. Kc2 {[%clk 0:00:03.4]} 46... Rb2+ {[%clk
0:00:03.5]} 47. Kc1 {[%clk 0:00:03.6]} 47... Rxb4 {[%clk 0:00:02.1]} 48. Rd7
{[%clk 0:00:04]} 48... Rxe4 {[%clk 0:00:02.1]} 49. Rxf7+ {[%clk 0:00:03.6]}
49... Kg8 {[%clk 0:00:01.8]} 50. Rxf6 {[%clk 0:00:04]} 50... Rxg4 {[%clk
0:00:01.1]} 51. Nxh6+ {[%clk 0:00:04.3]} 51... Kg7 {[%clk 0:00:01.1]} 52. Nxg4
{[%clk 0:00:05.2]} 1-0

[Event "*** SCC Grand Prix: Titled Tuesday Blitz"]
[Site "Chess.com"]
[Date "2020.06.09"]
[Round "9"]
[White "maciejos95"]
[Black "Fortitudine"]
[Result "1/2-1/2"]
[WhiteElo "2461"]
[BlackElo "2257"]
[TimeControl "180+1"]
[EndTime "10:47:16 PDT"]
[Termination "Game drawn by agreement"]

1. e4 {[%clk 0:03:00.9]} 1... c5 {[%clk 0:02:59.7]} 2. Nf3 {[%clk 0:03:00]} 2...
d6 {[%clk 0:02:59.9]} 3. d4 {[%clk 0:02:59.5]} 3... cxd4 {[%clk 0:03:00.8]} 4.
Nxd4 {[%clk 0:02:59.7]} 4... Nf6 {[%clk 0:03:01.4]} 5. Nc3 {[%clk 0:03:00]} 5...
Nc6 {[%clk 0:03:01.9]} 6. Bc4 {[%clk 0:02:59.6]} 6... Qb6 {[%clk 0:03:01.1]} 7.
Nde2 {[%clk 0:02:47]} 7... e6 {[%clk 0:02:53.8]} 8. O-O {[%clk 0:02:45.3]} 8...
Be7 {[%clk 0:02:53.4]} 9. Bb3 {[%clk 0:02:45.2]} 9... O-O {[%clk 0:02:52.6]} 10.
Be3 {[%clk 0:02:42.2]} 10... Qc7 {[%clk 0:02:52.6]} 11. h3 {[%clk 0:02:36]}
11... a6 {[%clk 0:02:52.6]} 12. f4 {[%clk 0:02:35.6]} 12... b5 {[%clk 0:02:42]}
13. a3 {[%clk 0:02:33.6]} 13... Na5 {[%clk 0:02:41.1]} 14. Ba2 {[%clk 0:02:31]}
14... Bb7 {[%clk 0:02:41.4]} 15. Ng3 {[%clk 0:02:29.2]} 15... Rac8 {[%clk
0:02:39.4]} 16. f5 {[%clk 0:02:27.6]} 16... Nc4 {[%clk 0:02:36.9]} 17. Bxc4
{[%clk 0:02:25.2]} 17... Qxc4 {[%clk 0:02:33.8]} 18. Qd4 {[%clk 0:02:21.8]}
18... Qxd4 {[%clk 0:02:23]} 19. Bxd4 {[%clk 0:02:22]} 19... e5 {[%clk
0:02:23.5]} 20. Bf2 {[%clk 0:02:18.6]} 20... d5 {[%clk 0:02:23.9]} 21. exd5
{[%clk 0:02:15.8]} 21... Nxd5 {[%clk 0:02:24.8]} 22. Nxd5 {[%clk 0:02:13.4]}
22... Bxd5 {[%clk 0:02:25.7]} 23. c3 {[%clk 0:02:12.3]} 23... f6 {[%clk
0:02:21.8]} 24. Rfd1 {[%clk 0:02:10.5]} 24... Rfd8 {[%clk 0:02:19.7]} 25. Rd2
{[%clk 0:02:09]} 25... Bb3 {[%clk 0:02:19]} 26. Nf1 {[%clk 0:01:55.8]} 26... Kf7
{[%clk 0:02:01.1]} 27. Bb6 {[%clk 0:01:49]} 27... Rxd2 {[%clk 0:01:54.7]} 28.
Nxd2 {[%clk 0:01:49.9]} 28... Bd5 {[%clk 0:01:55.3]} 29. Rd1 {[%clk 0:01:45.8]}
29... Rc6 {[%clk 0:01:43]} 30. Be3 {[%clk 0:01:41.2]} 30... g6 {[%clk
0:01:39.6]} 31. fxg6+ {[%clk 0:01:39.6]} 31... hxg6 {[%clk 0:01:40.5]} 32. Nf3
{[%clk 0:01:34.2]} 32... Bxf3 {[%clk 0:01:33.7]} 33. gxf3 {[%clk 0:01:35.1]}
33... Ke6 {[%clk 0:01:33.9]} 34. Kf2 {[%clk 0:01:34.7]} 34... g5 {[%clk
0:01:31.8]} 35. Ra1 {[%clk 0:01:26.5]} 35... Rc4 {[%clk 0:01:26.7]} 36. Rg1
{[%clk 0:01:22]} 36... a5 {[%clk 0:01:16.2]} 37. Rg4 {[%clk 0:01:21]} 37... Rc6
{[%clk 0:01:14.6]} 38. a4 {[%clk 0:01:14.2]} 38... b4 {[%clk 0:01:12.8]} 39. Bd2
{[%clk 0:01:12.8]} 39... f5 {[%clk 0:01:00.3]} 40. Rg2 {[%clk 0:01:12.5]} 40...
bxc3 {[%clk 0:00:47.5]} 41. Bxc3 {[%clk 0:01:12.9]} 41... Rc4 {[%clk 0:00:44.6]}
42. Bxa5 {[%clk 0:01:08.5]} 42... Rxa4 {[%clk 0:00:44.2]} 43. Bd2 {[%clk
0:01:07.5]} 43... Ra2 {[%clk 0:00:39.7]} 44. Bc3 {[%clk 0:01:06.1]} 44... Bb4
{[%clk 0:00:30.8]} 45. Bxb4 {[%clk 0:01:02.9]} 45... Rxb2+ {[%clk 0:00:30.7]}
46. Kf1 {[%clk 0:01:03.3]} 46... Rxb4 {[%clk 0:00:25.7]} 47. Rxg5 {[%clk
0:01:03.5]} 47... Rb2 {[%clk 0:00:23]} 48. Rh5 {[%clk 0:01:02]} 48... f4 {[%clk
0:00:22.4]} 49. Rh8 {[%clk 0:01:01.1]} 49... Kd5 {[%clk 0:00:20.4]} 50. Rd8+
{[%clk 0:01:01.2]} 50... Kc4 {[%clk 0:00:20.5]} 51. Kg1 {[%clk 0:01:01.6]} 51...
Kc3 {[%clk 0:00:17.8]} 52. h4 {[%clk 0:01:01.4]} 52... Rb6 {[%clk 0:00:16.7]}
53. Rd5 {[%clk 0:00:57.6]} 53... Rh6 {[%clk 0:00:14.9]} 54. Rxe5 {[%clk
0:00:56.1]} 54... Rxh4 {[%clk 0:00:15.4]} 55. Rd5 {[%clk 0:00:55.5]} 55... Kc4
{[%clk 0:00:15.3]} 56. Rd8 {[%clk 0:00:55.4]} 56... Kc5 {[%clk 0:00:12.3]} 57.
Kg2 {[%clk 0:00:55.8]} 57... Kc4 {[%clk 0:00:11.3]} 58. Kf2 {[%clk 0:00:55.8]}
58... Kc3 {[%clk 0:00:11.1]} 59. Ke2 {[%clk 0:00:54.8]} 59... Rh2+ {[%clk
0:00:11.3]} 60. Ke1 {[%clk 0:00:55.3]} 60... Kc2 {[%clk 0:00:09.3]} 61. Rd4
{[%clk 0:00:54.4]} 61... Rh4 {[%clk 0:00:09.5]} 62. Ke2 {[%clk 0:00:52.3]} 62...
Kc3 {[%clk 0:00:09.7]} 63. Rd8 {[%clk 0:00:52.4]} 63... Rh2+ {[%clk 0:00:08.5]}
64. Kf1 {[%clk 0:00:52.8]} 64... Rh4 {[%clk 0:00:09.1]} 65. Kf2 {[%clk
0:00:53.3]} 65... Kc2 {[%clk 0:00:09.3]} 66. Rg8 {[%clk 0:00:52.5]} 66... Kd3
{[%clk 0:00:08.5]} 67. Rg4 {[%clk 0:00:52.6]} 67... Rxg4 {[%clk 0:00:08.2]} 68.
fxg4 {[%clk 0:00:53.2]} 68... Ke4 {[%clk 0:00:09.1]} 69. g5 {[%clk 0:00:53.8]}
69... Kf5 {[%clk 0:00:09.2]} 70. Kf3 {[%clk 0:00:53.3]} 70... Kxg5 {[%clk
0:00:09.3]} 71. Kf2 {[%clk 0:00:53.8]} 71... Kg4 {[%clk 0:00:09.7]} 72. Kg2
{[%clk 0:00:54.2]} 72... Kg5 {[%clk 0:00:09.2]} 73. Kf3 {[%clk 0:00:54.3]} 73...
Kf5 {[%clk 0:00:10.1]} 74. Kf2 {[%clk 0:00:54.4]} 1/2-1/2

[Event "*** SCC Grand Prix: Titled Tuesday Blitz"]
[Site "Chess.com"]
[Date "2020.06.09"]
[Round "9"]
[White "Dr_crypt"]
[Black "Boninknights"]
[Result "0-1"]
[WhiteElo "2456"]
[BlackElo "2366"]
[TimeControl "180+1"]
[EndTime "10:47:17 PDT"]
[Termination "Boninknights won on time"]

1. d4 {[%clk 0:03:00.6]} 1... Nf6 {[%clk 0:02:58.3]} 2. Nf3 {[%clk 0:03:00.5]}
2... d6 {[%clk 0:02:56.1]} 3. g3 {[%clk 0:02:59.8]} 3... g6 {[%clk 0:02:54.3]}
4. Bg2 {[%clk 0:03:00.7]} 4... Bg7 {[%clk 0:02:54]} 5. O-O {[%clk 0:03:01.6]}
5... O-O {[%clk 0:02:53.4]} 6. b3 {[%clk 0:03:02]} 6... Nbd7 {[%clk 0:02:45.4]}
7. Bb2 {[%clk 0:03:01.9]} 7... e5 {[%clk 0:02:44.3]} 8. dxe5 {[%clk 0:03:01.3]}
8... Ng4 {[%clk 0:02:43.2]} 9. Qc1 {[%clk 0:02:48.3]} 9... Ngxe5 {[%clk
0:02:38.5]} 10. Nxe5 {[%clk 0:02:47]} 10... dxe5 {[%clk 0:02:30.8]} 11. Rd1
{[%clk 0:02:46.9]} 11... Re8 {[%clk 0:02:24.6]} 12. Nd2 {[%clk 0:02:45.4]} 12...
Qg5 {[%clk 0:02:11.4]} 13. Nc4 {[%clk 0:02:32.8]} 13... Qxc1 {[%clk 0:02:07]}
14. Raxc1 {[%clk 0:02:33.7]} 14... a5 {[%clk 0:01:52.7]} 15. a4 {[%clk
0:02:27.7]} 15... Nc5 {[%clk 0:01:45.2]} 16. Bc3 {[%clk 0:02:23.2]} 16... e4
{[%clk 0:01:34.9]} 17. Bxa5 {[%clk 0:02:13.7]} 17... Be6 {[%clk 0:01:31.5]} 18.
Bb4 {[%clk 0:01:57.3]} 18... Nxa4 {[%clk 0:01:29.6]} 19. Ne3 {[%clk 0:01:47.1]}
19... Nc3 {[%clk 0:01:17.5]} 20. Rd2 {[%clk 0:01:42.2]} 20... f5 {[%clk
0:01:12.3]} 21. Kf1 {[%clk 0:01:36.8]} 21... Red8 {[%clk 0:01:09.8]} 22. Rxd8+
{[%clk 0:01:26]} 22... Rxd8 {[%clk 0:01:07.1]} 23. Ke1 {[%clk 0:01:17.5]} 23...
Na2 {[%clk 0:01:03.6]} 24. Be7 {[%clk 0:01:06.5]} 24... Rd7 {[%clk 0:01:00.8]}
25. Ba3 {[%clk 0:00:58.3]} 25... Bc3+ {[%clk 0:00:55.9]} 26. Kf1 {[%clk
0:00:57.9]} 26... Nxc1 {[%clk 0:00:54.9]} 27. Bxc1 {[%clk 0:00:57.9]} 27... Bd2
{[%clk 0:00:50.1]} 28. Bxd2 {[%clk 0:00:56.7]} 28... Rxd2 {[%clk 0:00:48.4]} 29.
Ke1 {[%clk 0:00:57.6]} 29... Rd6 {[%clk 0:00:47.3]} 30. f3 {[%clk 0:00:58]}
30... exf3 {[%clk 0:00:43.6]} 31. Bxf3 {[%clk 0:00:58.9]} 31... b5 {[%clk
0:00:42.1]} 32. b4 {[%clk 0:00:51.5]} 32... Kg7 {[%clk 0:00:39.8]} 33. c3 {[%clk
0:00:50.6]} 33... Kf6 {[%clk 0:00:39]} 34. Nc2 {[%clk 0:00:50.6]} 34... Ke5
{[%clk 0:00:36.9]} 35. Ne3 {[%clk 0:00:45.8]} 35... f4 {[%clk 0:00:32.4]} 36.
gxf4+ {[%clk 0:00:45.2]} 36... Kxf4 {[%clk 0:00:32.3]} 37. Nc2 {[%clk
0:00:45.5]} 37... g5 {[%clk 0:00:30.8]} 38. Nd4 {[%clk 0:00:44.7]} 38... Bd7
{[%clk 0:00:28]} 39. Kf2 {[%clk 0:00:40.6]} 39... g4 {[%clk 0:00:26.3]} 40. e3+
{[%clk 0:00:40.2]} 40... Kg5 {[%clk 0:00:26]} 41. Be4 {[%clk 0:00:40]} 41... h5
{[%clk 0:00:25]} 42. Kg2 {[%clk 0:00:26.9]} 42... h4 {[%clk 0:00:24.1]} 43. Kf2
{[%clk 0:00:26.9]} 43... Ra6 {[%clk 0:00:23.5]} 44. Bd3 {[%clk 0:00:22.1]} 44...
Ra2+ {[%clk 0:00:22.2]} 45. Kg1 {[%clk 0:00:22.5]} 45... g3 {[%clk 0:00:20.9]}
46. hxg3 {[%clk 0:00:22.5]} 46... hxg3 {[%clk 0:00:20.5]} 47. Be2 {[%clk
0:00:12.4]} 47... Bg4 {[%clk 0:00:18]} 48. Bxb5 {[%clk 0:00:11.3]} 48... Bh3
{[%clk 0:00:15.1]} 49. Nf3+ {[%clk 0:00:01.5]} 49... Kf6 {[%clk 0:00:13.5]} 0-1